Cogmind - Beta 13 @@@ ROGUE MODE // 2024.04.12 @ 00:47:49 Player: anthonyiye Result: Destroyed by G-47 Trooper with Particle Gun Performance ------------- Evolutions (2) 1000 Regions Visited (5) 1000 Robots Destroyed (50) 250 Value Destroyed (1473) 1473 Prototype IDs (7) 140 Alien Tech Used (0) 0 Bonus (300) 300 TOTAL SCORE: 4163 Bonus ------- Follower Combat Kills 42 Aligned with FarCom 300 Friendly Fire -42 Cogmind --------- Core Integrity 0/550 Matter 172/300 Energy 430/480 System Corruption 0% Temperature Danger (448) Movement Treading (560) Ox5 Location -8/Materials Parts ------- > --- POWER (2) -------- Improved Deuterium Engine Improved Deuterium Engine > --- PROPULSION (3) --- Light Treads > --- UTILITY (4) ------ Huge Storage Unit > --- WEAPON (2) ------- Gatling Laser Gatling Laser > --- INVENTORY (25) --- Improved Deuterium Engine Improved Deuterium Engine Flight Unit Flight Unit Flight Unit Flight Unit Faulty Improved VTOL Module Improved Heat Sink Advanced Visual Processing Unit Sensor Array Improved Sensor Array Improved Utility Shielding Hacking Suite Trap Reconfigurator Beam Rifle Spread Laser Field Laser Gatling Laser Autogun Autogun Datajack Hammer Katana Peak State ------------ > --- POWER ------------ Improved Deuterium Engine Improved Deuterium Engine > --- PROPULSION ------- Light Treads Light Treads > --- UTILITY ---------- Huge Storage Unit > --- WEAPON ----------- Gatling Laser Gatling Laser > --- INVENTORY -------- Improved Deuterium Engine Improved Deuterium Engine Flight Unit Flight Unit Flight Unit Flight Unit Improved VTOL Module Improved Heat Sink Advanced Visual Processing Unit Sensor Array Improved Sensor Array Improved Utility Shielding Hacking Suite Trap Reconfigurator Beam Rifle Spread Laser Field Laser Gatling Laser Autogun Autogun Datajack Hammer Katana [Rating: 25] Favorites ----------- Power Ion Engine Engine Ion Engine Power Core Light Nuclear Core Propulsion Light Treads Treads Light Treads Leg Carbon-fiber Leg Wheel Compact Wheel Utility Huge Storage Unit Device Improved Heat Sink Storage Huge Storage Unit Processor Signal Interpreter Weapon Assault Rifle Energy Gun Spread Laser Ballistic Gun Assault Rifle Ballistic Cannon Battle Cannon Launcher Grenade Launcher Special Weapon Mining Laser Impact Weapon Hammer Build | -11 -10 -10 -10 -9 -8 ------- Run | Yrd Mat Min Exi Min Mat Slots Evolved 4 | . . . . . 4 Power 1 | . . . . . 1 Propulsion 1 | . . . . . 1 Utility 2 | . . . . . 2 Weapon . | . . . . . . Parts Attached 49 | 6 6 6 6 2 23 Power 7 | 1 2 . 1 . 3 Engine 6 | 1 2 . 1 . 2 Core 1 | . . . . . 1 Reactor . | . . . . . . Propulsion 12 | 2 . 3 . . 7 Treads 4 | 2 . . . . 2 Leg 3 | . . . . . 3 Wheel 5 | . . 3 . . 2 Hover . | . . . . . . Flight . | . . . . . . Utility 11 | 1 4 . 5 . 1 Device 5 | . 2 . 3 . . Storage 5 | 1 1 . 2 . 1 Processor 1 | . 1 . . . . Hackware . | . . . . . . Protection . | . . . . . . Artifact . | . . . . . . Weapon 19 | 2 . 3 . 2 12 Energy Gun 4 | . . . . . 4 Energy Cannon . | . . . . . . Ballistic Gun 6 | 2 . 1 . . 3 Ballistic Cannon 1 | . . . . 1 . Launcher 6 | . . 1 . 1 4 Special Weapon 1 | . . 1 . . . Impact Weapon 1 | . . . . . 1 Slashing Weapon . | . . . . . . Piercing Weapon . | . . . . . . Special Melee Weapon . | . . . . . . Unidentified Prototypes 3 | . . . 3 . . Parts Lost 25 | . . 7 . 2 16 Power 3 | . . 1 . . 2 Propulsion 11 | . . 3 . 1 7 Utility 1 | . . . . . 1 Weapon 10 | . . 3 . 1 6 Highest Loss Streak 9 | . . 3 . 1 9 To Critical Strikes . | . . . . . . Average Slot Usage (%) 71 | . 99 72 70 86 45 Engine 5 | . 14 1 . 14 1 Treads 12 | . 28 1 . . 11 Leg 1 | . . . . . 3 Wheel 8 | . . 23 28 16 1 Device 4 | . 13 . . . . Storage 12 | . 14 14 13 14 8 Processor 5 | . . 14 14 14 2 Energy Gun 2 | . . . . . 6 Ballistic Gun 10 | . 28 7 . . 2 Launcher 1 | . . 4 . 12 . Special Weapon 2 | . . 5 14 . . Impact Weapon 1 | . . . . . 3 Naked Turns 77 | . . . . . 77 Heaviest Build 108 | 11 89 89 86 91 108 Greatest Support 45 | 40 40 32 26 26 45 Greatest Overweight (x) 27 | . 2 27 3 5 27 Average Overweight (x) 2 | . 1 3 2 4 2 Largest Inventory Capacity 25 | 8 25 25 25 25 25 Average Capacity 23 | 7 22 25 24 25 24 Most Carried 23 | 3 11 13 13 12 23 Average Carried 11 | 1 7 11 12 10 16 Final Capacity 25 | 8 25 25 25 25 25 Final Carried 23 | 2 11 13 12 12 23 Class Distribution -------------------- 95% | Mutant 4% | Scavenger-Mutant Dominant Class ---------------- Mutant | -10/Materials Mutant | -10/Mines Mutant | -10/Exiles Mutant | -9/Mines Mutant | -8/Materials Resources | -11 -10 -10 -10 -9 -8 ----------- Run | Yrd Mat Min Exi Min Mat Matter Collected 1474 | 203 325 318 . 149 479 Remotely . | . . . . . . Salvage Created 1446 | . 432 338 . 29 647 Parts 82 | . 33 21 . . 28 Haulers Intercepted 1 | . . . . . 1 Recyclers Shooed 1 | . . 1 . . . Parts Field Recycled . | . . . . . . Retrieved Matter . | . . . . . . Parts Self-Destructed . | . . . . . . Prevented . | . . . . . . Kills | -11 -10 -10 -10 -9 -8 ------- Run | Yrd Mat Min Exi Min Mat Combat Hostiles Destroyed 35 | . 8 7 . 4 16 Guns 14 | . 8 1 . . 5 Cannons 3 | . . . . . 3 AOE 16 | . . 6 . 4 6 Classes Destroyed 11 | . 3 4 . 1 3 Worker 2 | . . . . . 2 Builder 5 | . . 3 . . 2 Tunneler 4 | . . 3 . . 1 Hauler 1 | . . . . . 1 Recycler 2 | . . 2 . . . Operator 2 | . 2 . . . . Watcher 3 | . 3 . . . . Swarmer 1 | . . 1 . . . Grunt 26 | . 8 6 . . 12 Sentry 4 | . . . . . 4 Assembled 4 | . . . . 4 . Best Kill Streak 7 | . 4 4 . 4 7 Combat Bots Only 4 | . 4 2 . 4 4 Max Kills in Single Turn 3 | . 1 3 . 3 1 Gunslinging . | . . . . . . Exploded 3 | . . 1 . 3 1 Melee . | . . . . . . Uniques/NPCs Destroyed . | . . . . . . Combat | -11 -10 -10 -10 -9 -8 -------- Run | Yrd Mat Min Exi Min Mat Hostile Shots Fired 246 | . 48 33 . 11 154 Missed 82 | . 17 11 . 2 52 Damage Taken 2767 | . 429 487 . 92 1759 Core 732 | . 50 100 . 29 553 Absorbed by Shields . | . . . . . . Core Remaining (%) 64 | 100 . . . 28 . Volleys Fired 159 | . 63 27 . 5 64 Largest 2 | . 2 2 . 2 2 Hottest 160 | . 40 120 . 69 160 Shots Fired 281 | . 126 46 . 8 101 Gun 213 | . 126 25 . . 62 Cannon 24 | . . . . 5 19 Launcher 43 | . . 20 . 3 20 Special 1 | . . 1 . . . Kinetic 218 | . 126 25 . 5 62 Thermal 20 | . . 1 . . 19 Explosive 43 | . . 20 . 3 20 Electromagnetic . | . . . . . . Robot Hit Streak 11 | . 9 5 . 4 11 Robot Miss Streak 4 | . 4 2 . 3 4 Penetration Max . | . . . . . . Secondary Targets . | . . . . . . Shots Hit Robots 189 | . 82 30 . 4 73 Core Hits 116 | . 31 24 . 6 55 Critical Kills 1 | . 1 . . . . Critical Parts Destroyed 4 | . 1 . . . 3 Critical Strikes 7 | . 2 . . . 5 Destroy 2 | . 2 . . . . Blast 2 | . . . . . 2 Smash 3 | . . . . . 3 Melee Attacks 15 | . . . . . 15 Impact 15 | . . . . . 15 Slashing . | . . . . . . Piercing . | . . . . . . Sneak Attacks . | . . . . . . Combat Hostiles . | . . . . . . Follow-up Attacks . | . . . . . . Damage Inflicted 4352 | . 918 1172 . 215 2047 Guns 1815 | . 887 172 . . 756 Cannons 328 | . . . . 84 244 Explosions 2036 | . . 935 . 131 970 Melee 77 | . . . . . 77 Ramming 72 | . 31 41 . . . Kinetic 1809 | . 887 172 . 84 666 Thermal 358 | . . 24 . . 334 Explosive 2036 | . . 935 . 131 970 Electromagnetic . | . . . . . . Impact 77 | . . . . . 77 Slashing . | . . . . . . Piercing . | . . . . . . Highest Corruption 1 | . 1 1 1 1 . Average Corruption 1 | . 1 1 1 1 . Corruption Purged . | . . . . . . Corruption Blocked . | . . . . . . Effects 16 | . 1 4 9 2 . Message Errors 7 | . . 1 4 2 . Matter Fused 5 | . . 2 3 . . Energy Discharges 2 | . . . 2 . . Data Loss (major) 1 | . . 1 . . . Alerts 1 | . 1 . . . . Overload Shots . | . . . . . . Overflow Damage 120 | . . 43 . . 77 Projectiles . | . . . . . . Explosions 43 | . . 43 . . . Melee 77 | . . . . . 77 Knockbacks 5 | . . . . . 5 Impact . | . . . . . . Kinetic 5 | . . . . . 5 Secondary . | . . . . . . Self-Inflicted Damage 242 | . . 181 . . 61 Shots 12 | . . 10 . . 2 Rammed 10 | . 7 3 . . . Targets Rammed 10 | . 7 3 . . . Kicked . | . . . . . . Crushed . | . . . . . . Highest Temperature 421 | . 12 30 . 47 421 Average Temperature 44 | . 7 10 . 31 64 Received Heat Transfer 1025 | . 228 162 . 20 615 Effects 2 | . . . . . 2 Energy Bleed 1 | . . . . . 1 Interference 1 | . . . . . 1 Siege Activations . | . . . . . . Robots Corrupted . | . . . . . . Combat Hostiles . | . . . . . . Parts Fried . | . . . . . . Impact Corruptions 3 | . . . . . 3 Robots Melted . | . . . . . . Combat Hostiles . | . . . . . . Parts Melted 2 | . . . . . 2 Heat Transferred 656 | . . 50 . . 606 Parts Sabotaged . | . . . . . . Parts Stolen . | . . . . . . Parts Stripped . | . . . . . . Power Chain Reactions . | . . . . . . Alert | -11 -10 -10 -10 -9 -8 ------- Run | Yrd Mat Min Exi Min Mat Peak Influence 256 | . 256 219 . 109 256 Initial 26 | . . . . . 26 Average 53 | . 43 51 . 68 63 Maximum Alert Level 1 | . 1 1 . . 1 Low Security (%) 95 | 100 92 97 . 100 96 Level 1 4 | . 7 2 . . 3 Level 2 . | . . . . . . Level 3 . | . . . . . . Level 4 . | . . . . . . Level 5 . | . . . . . . High Security . | . . . . . . Max Security . | . . . . . . Squads Dispatched 8 | . 2 . . . 6 Investigation 1 | . . . . . 1 Extermination . | . . . . . . Reinforcement 7 | . 2 . . . 5 Assault . | . . . . . . Garrison . | . . . . . . Intercept . | . . . . . . Searches Triggered . | . . . . . . Construction Impeded . | . . . . . . Haulers Reinforced . | . . . . . . Active Scanning Responses . | . . . . . . Cargo Convoy Interrupts . | . . . . . . Stealth | -11 -10 -10 -10 -9 -8 --------- Run | Yrd Mat Min Exi Min Mat Distress Signals 9 | . 2 . . . 7 Communications Jammed . | . . . . . . Distress Signals . | . . . . . . Times Spotted 84 | . 25 9 . 8 42 Peak Tracking Total 5 | . 4 3 . 4 5 Tactical Retreats 7 | . . . . . 7 Traps | -11 -10 -10 -10 -9 -8 ------- Run | Yrd Mat Min Exi Min Mat Traps Triggered 1 | . 1 . . . . Indirectly . | . . . . . . Trap Hack Attempts . | . . . . . . Triggered . | . . . . . . Disarmed . | . . . . . . Reprogrammed . | . . . . . . Reused . | . . . . . . Traps Extracted . | . . . . . . Installed . | . . . . . . Triggered . | . . . . . . Machines | -11 -10 -10 -10 -9 -8 ---------- Run | Yrd Mat Min Exi Min Mat Machines Disabled 1 | . . . . . 1 Max in Single Turn 1 | . . . . . 1 Machines Repaired . | . . . . . . Machines Dismantled . | . . . . . . Machines Sabotaged . | . . . . . . Overloaded Fab Kills . | . . . . . . Hacking | -11 -10 -10 -10 -9 -8 --------- Run | Yrd Mat Min Exi Min Mat Machines Accessed 16 | . 5 2 4 . 5 Terminals 11 | . 5 1 . . 5 Fabricators . | . . . . . . Repair Stations . | . . . . . . Recycling Units . | . . . . . . Scanalyzers . | . . . . . . Garrison Access . | . . . . . . Total Hacks 77 | . 11 3 49 . 14 Successful 60 | . 6 2 49 . 3 Failed 17 | . 5 1 . . 11 Catastrophic 4 | . . . . . 4 Database Lockouts . | . . . . . . Manual 13 | . . . 2 . 11 Terminals 27 | . 11 2 . . 14 Fabricators . | . . . . . . Repair Stations . | . . . . . . Recycling Units . | . . . . . . Scanalyzers . | . . . . . . Garrison Access . | . . . . . . Terminal Hacks 60 | . 6 2 49 . 3 Record 49 | . . . 49 . . Robot Analysis 1 | . 1 . . . . Prototype ID Bank 2 | . 2 . . . . Open Door 1 | . . 1 . . . Alert Level 2 | . 1 . . . 1 Dispatch Records 1 | . . . . . 1 Patrol Status 1 | . . 1 . . . Transport Status 1 | . 1 . . . . Hauler Manifests 1 | . 1 . . . . Zone Layout 1 | . . . . . 1 Fabricator Hacks . | . . . . . . Repair Station Hacks . | . . . . . . Recycling Unit Hacks . | . . . . . . Scanalyzer . | . . . . . . Garrison Access Hacks . | . . . . . . Unauthorized Hacks . | . . . . . . Terminals . | . . . . . . Fabricators . | . . . . . . Repair Stations . | . . . . . . Recycling Units . | . . . . . . Scanalyzers . | . . . . . . Garrison Access . | . . . . . . Data Cores Recovered . | . . . . . . Used . | . . . . . . Hacking Detections 10 | . 5 1 . . 4 Full Trace Events 1 | . . . . . 1 Feedback Events . | . . . . . . Feedback Blocked . | . . . . . . Robot Schematics Acquired . | . . . . . . Robots Built . | . . . . . . Authchips . | . . . . . . Time . | . . . . . . Total Robot Build Rating . | . . . . . . Part Schematics Acquired . | . . . . . . Parts Built . | . . . . . . Authchips . | . . . . . . Time . | . . . . . . Total Part Build Rating . | . . . . . . Parts Repaired . | . . . . . . Time . | . . . . . . Parts Recycled . | . . . . . . Recycled Matter . | . . . . . . Retrieved Matter . | . . . . . . Retrieved Components . | . . . . . . Parts Scanalyzed . | . . . . . . Part Schematics Acquired . | . . . . . . Parts Damaged . | . . . . . . Bothacking | -11 -10 -10 -10 -9 -8 ------------ Run | Yrd Mat Min Exi Min Mat Used RIF Installer . | . . . . . . Robots Hacked . | . . . . . . Non-combat . | . . . . . . Combat . | . . . . . . Robot Hacks Applied . | . . . . . . Relay Couplers Released . | . . . . . . Fabnet Peak Effective % . | . . . . . . Robots Rewired . | . . . . . . Allies Hacked . | . . . . . . Hacks Repelled . | . . . . . . Allies | -11 -10 -10 -10 -9 -8 -------- Run | Yrd Mat Min Exi Min Mat Total Allies 4 | . . 4 . . . Largest Group 4 | . . 4 3 3 1 Highest-Rated Group 71 | . . 71 40 40 16 Highest-Rated Ally 31 | . . 31 16 16 16 Total Orders . | . . . . . . Ally Attacks 40 | . . 5 . 26 9 Total Damage 336 | . . 64 . 158 114 Kills 6 | . . 2 . 4 . Allies Corrupted . | . . . . . . Allies Melted . | . . . . . . Intel | -11 -10 -10 -10 -9 -8 ------- Run | Yrd Mat Min Exi Min Mat Robot Analysis Total 1 | . 1 . . . . Derelict Logs Recovered 2 | . . 1 . 1 . Drone Launches . | . . . . . . Drone Recoveries . | . . . . . . Exploration | -11 -10 -10 -10 -9 -8 ------------- Run | Yrd Mat Min Exi Min Mat Turns Passed 6744 | 73 2069 1139 861 266 2336 Spaces Moved 2985 | 44 612 699 631 149 850 Core 191 | 7 . 4 . . 180 Treads 1060 | 37 612 13 . . 398 Legs 124 | . . . . . 124 Wheels 1610 | . . 682 631 149 148 Hover . | . . . . . . Flight . | . . . . . . Fastest Speed 50 | 50 160 130 90 135 50 Average Speed 200 | 142 303 150 133 167 228 Slowest Speed 1400 | 160 320 1400 135 175 1400 Overloaded Moves . | . . . . . . Propulsion Burnouts . | . . . . . . Robots Hopped . | . . . . . . Cave-ins Triggered . | . . . . . . Exploration Rate (%) 61 | 4 94 99 90 30 53 Regions Visited 5 Branch Regions 3 Pre-discovered Areas 1 | . . . 1 . . Known Exits Taken 4 | . 1 1 1 1 . Unknown Exits Taken 1 | 1 . . . . . Scrap Searched 3 | . . 2 . 1 . Spaces Dug 8 | . . . . . 8 Terrain Destroyed 238 | . . 125 . 8 105 Melee 8 | . . . . . 8 Projectile 3 | . . . . . 3 AOE 227 | . . 125 . 8 94 Terrain Rammed . | . . . . . . Walls Destroyed . | . . . . . . Machines Disabled . | . . . . . . Actions | -11 -10 -10 -10 -9 -8 --------- Run | Yrd Mat Min Exi Min Mat Total 3421 | 52 704 740 649 157 1119 Wait 132 | . 2 . . . 130 Move 2980 | 43 611 698 630 148 850 Hop . | . . . . . . Pick Up 58 | 3 9 6 8 2 30 Fast Attach 26 | 5 2 1 5 . 13 Attach 15 | 1 . 4 1 2 7 Detach 4 | . 1 . . . 3 Swap 8 | . 4 1 . . 3 Drop 14 | . 5 . 5 . 4 Fire 159 | . 63 27 . 5 64 Melee 15 | . . . . . 15 Ram 3 | . . 3 . . . Kick . | . . . . . . Crush 7 | . 7 . . . . Escape Stasis . | . . . . . . Rewire . | . . . . . . Trap . | . . . . . . Miscellaneous . | . . . . . . Route ------- -11/Scrapyard -10/Materials (discovered 5 exits: *Mat x3 / *Min x2) -10/Mines (discovered 4 exits: *Mat x2 / *Exi / *Sub) -10/Exiles (discovered 2 exits: *Min x2) -9/Mines -8/Materials (discovered 1 exit: [*Fac]) History --------- Turn | Location | Event 4 | -11/Scrapyard | Discovered new exit (range 15) 74 | -11/Scrapyard | Entered Materials 309 | -10/Materials | Build established: Mutant 574 | -10/Materials | Discovered new exit (range 16) 833 | -10/Materials | Discovered new exit (range 16) 1051 | -10/Materials | Discovered new exit (range 5) 1508 | -10/Materials | Discovered new exit (range 12) 1939 | -10/Materials | Discovered new exit (range 6) 2139 | -10/Materials | Identified exit to Mines 2143 | -10/Materials | Entered Mines 2228 | -10/Mines | Core integrity fell below 50% 2261 | -10/Mines | Lost 3 parts (1p1n1w) 2300 | -10/Mines | Discovered new exit (range 7) 2311 | -10/Mines | Identified exit to Subcaves 2345 | -10/Mines | Discovered new exit (range 8) 2353 | -10/Mines | Identified exit to Materials 2445 | -10/Mines | Discovered exit to Materials (range 6) 2550 | -10/Mines | A weapon hastily lodged in a ceiling crevice suddenly fell to the ground 2714 | -10/Mines | Found the Drone Emporium 2718 | -10/Mines | Found Prototype Device 2805 | -10/Mines | Received a Mining Laser from a helpful Derelict 2881 | -10/Mines | Assisted by bots powering up and referring to "LRC-V3" 3154 | -10/Mines | Deemed a non-threat by the Exiles lab entrance 3155 | -10/Mines | Discovered new exit (range 5) 3163 | -10/Mines | Identified exit to Exiles 3282 | -10/Mines | Entered Exiles 3282 | -10/Exiles | Accompanied by 3 allies 3304 | -10/Exiles | Discovered new exit (range 14) 3318 | -10/Exiles | Met 8R-AWN 3341 | -10/Exiles | Met EX-HEX 3393 | -10/Exiles | Met EX-DEC 3439 | -10/Exiles | Visited The Gauntlet 3592 | -10/Exiles | Learned location of Zion (-7) 3631 | -10/Exiles | Discovered new exit (range 12) 3644 | -10/Exiles | Identified exit to Mines 3733 | -10/Exiles | Met EX-BIN 3886 | -10/Exiles | Aligned with FarCom system 3887 | -10/Exiles | Given EX-Vault access code 3921 | -10/Exiles | Opened EX-Vault 3944 | -10/Exiles | Found Prototype Device 3944 | -10/Exiles | Identified Trap Reconfigurator 3950 | -10/Exiles | Found Prototype Device 3950 | -10/Exiles | Identified Skeleton Box 3953 | -10/Exiles | Found Prototype Storage 3953 | -10/Exiles | Identified Superbattery 4035 | -10/Exiles | Warned to stay clear of 0b10 Research branches 4143 | -10/Exiles | Left Exiles lab with Trap Reconfigurator 4143 | -10/Exiles | Entered Mines 4143 | -9/Mines | Accompanied by 3 allies 4163 | -9/Mines | Assembled infested the area 4385 | -9/Mines | Discovered new exit (range 5) 4393 | -9/Mines | Identified exit to Materials 4409 | -9/Mines | Entered Materials 4409 | -8/Materials | Accompanied by 1 ally 4409 | -8/Materials | Evolved 4 slots: Power x1, Propulsion x1, Utility x2 4781 | -8/Materials | Lost 5 parts (1p1n3w) 5121 | -8/Materials | Core integrity fell below 50% 5182 | -8/Materials | Lost 9 parts (5n1u3w) 5238 | -8/Materials | Core integrity fell below 20% 6631 | -8/Materials | Discovered new exit (range 16) 6745 | -8/Materials | Destroyed by G-47 Trooper with Particle Gun Last Messages --------------- Connecting with Scanalyzer... EXIT=FOUND Acquired Imp. Deuterium Engine. Dropped Ion Engine. Dropped Nuclear Core. Acquired Imp. Deuterium Engine. Acquired Gatling Laser. W-25 Informer sends out distress signal. Connecting with Terminal... ALERT: Suspicious activity at Terminal M006. Dispatching Investigation squad. Lgt. Treads destroyed. Critical hit (Burn: +37). Overheating: System interference. Gatling Laser temporarily disabled. Critical hit (Burn: +37). Overheating: Energy bleed (-91). Imp. Heat Sink melted. G-47 Trooper destroyed. Critical hit (Burn: +37). Map ----- +----------------------------------------------------+ | # """ """ + "#??????????????????? | | # """ """ ##### ##??????????????????? | | +### #####+##??????????????????? | | + # #??????????????????? | | #########+# #??????????????????? | | ######### # #??????????????????? | | + / ! #??????????????????? | | # /! ##?????????????????? | | # /! "#?????????????????? | | #########?????????????????? | | ###########"#?????????????????????????? | | #?????????###?????????????????????????? | | #?????????????????????????????????????? | | #?????????????????????????????????????? | | #????#########????????????????????????? | | #????# #????????????????????????? | | #????# """" #????????????????????????? | | #????# ""S"" #????????????????????????? | | #????# "" "" ################?????????? | | #????# # #?????????? | | #???####+##### < #?????????? | | #???# #?????????? | | #???# ######## ####+####?????????? | | ##### #??????#* # g #??????????? | | #??????#* !!# gg #??????????? | | #??????# [ !!# @ #??????????? | | #??????########[ #??????????? | | #?????????????# "T" #??????????? | | ########?????????????# #??????????? | | ?????????????????????########??????????? | | ???????????????????????????????????????? | | ???????????????????????????????????????? | | ???????????????????????????????????????? | | ???????????????????????????????????????? | | | | | | | | | | | | | | | | | | | | | | | | | | | | | | | | | +----------------------------------------------------+ Best States ------------- Heat Dissipation 39 Energy Generation 27 Energy Capacity 480 Matter Stores 300 Matter Capacity 300 Sight Range 16 Terrain Scan Density 10 Evasion (%) 50 Recoil Reduction 2 Item Schematics ----------------- None Robot Schematics ------------------ None Fabricated ------------ Nothing Alien Tech Used ----------------- None Achievements -------------- None Challenges ------------ None Game ------ Seed TargetingWeaponJammer Manual? 0 Play Time 00:54:49 Cumulative 12.2 hours Start 2024.04.11 @ 23:49:11 End 2024.04.12 @ 00:47:49 Sessions 1 Manual Loads 0 Difficulty Rogue Special Mode None Game No. 10 Rogue 10 Adventurer 0 Explorer 0 Win Type - Total 0 Types 0/0/0/0/0/0/0/0/0 Lore% 14 Gallery% 16 Achievement% 18 Wizard Run 0 Options --------- Layout 1 ASCII 0 Keyboard 1 Movement Arrows Keybinds 0 Fullscreen 1 Font 32/SmallcapsGlow Map View 50x35 Zoom Use 0% Tactical HUD 0 Map Filters NONE Filters NONE Steam 0 RUN: 5209cc36-17cd-4dde-b1e2-5d7a0851df04